bitfinex-derivatives/quotes_ETHF0:USTF0_20250709
["timestamp","ask_amount","ask_price","bid_price","bid_amount"]
[1752096022076,1.3858,2751.1,2751.0,6.35501]
[1752096022873,0.8031,2751.4,2751.0,7.44525]
[1752096023075,1.52986,2751.4,2751.3,0.72675]
[1752096023278,2.18886,2751.4,2751.3,1.37025]
[1752096023578,2.18886,2751.4,2751.3,0.72675]
[1752096024068,2.18886,2751.4,2751.3,1.37025]
[1752096024274,2.00183997,2751.9,2751.6,0.72663]
[1752096024576,1.38567,2751.7,2751.6,1.37013]
[1752096024777,2.66429222,2751.7,2751.6,1.37013]
[1752096025474,1.93762222,2751.7,2751.6,1.37013]
[1752096025674,2.66426222,2751.7,2751.6,0.6435]
[1752096025881,0.7267,2751.6,2751.5,0.72667]
[1752096026277,1.3857,2751.6,2751.5,1.37017]
[1752096026475,1.3857,2751.6,2751.5,1.3702]
[1752096026674,1.3857,2751.6,2751.5,0.7267]
[1752096026976,1.3857,2751.6,2751.5,1.3702]
[1752096027971,0.7267,2751.6,2751.5,1.3702]
[1752096028374,1.3857,2751.6,2751.5,1.3702]
[1752096028579,1.3857,2751.6,2751.5,2.3237]
[1752096028980,0.659,2751.6,2751.5,2.3237]
[1752096029285,1.94032837,2751.6,2751.5,2.3237]
[1752096029484,1.38567,2751.6,2751.5,2.3237]
[1752096030174,0.7642,2751.8,2751.5,4.58697464]
[1752096030480,2.00775359,2751.7,2751.6,1.68017]
[1752096030681,2.00775359,2751.7,2751.6,2.32367]
[1752096031079,1.28110359,2751.7,2751.6,5.53147]
[1752096032275,0.18531997,2751.9,2751.8,0.72662]
[1752096032478,1.46461871,2751.9,2751.8,3.49685464]
[1752096032882,1.46461871,2751.9,2751.8,4.28525464]
[1752096033084,4.02344335,2751.9,2751.8,1.4319]
[1752096033284,0.72664,2751.7,2751.6,3.93446]
[1752096033585,1.38564,2751.7,2751.6,5.36636]
[1752096033777,1.38564,2751.7,2751.6,4.6397]
[1752096033982,2.66471088,2751.7,2751.6,4.6397]
[1752096034181,2.66471088,2751.7,2751.6,3.9962]
[1752096034385,2.66457657,2751.7,2751.6,3.2078]
[1752096034687,1.38564,2751.7,2751.6,3.8513]
[1752096034882,2.66457622,2751.7,2751.6,3.8513]
[1752096035090,2.66457622,2751.7,2751.6,3.2078]
[1752096035285,1.38564,2751.7,2751.6,3.2078]
[1752096035881,7.29994,2751.7,2751.6,3.2078]
[1752096036081,0.72675,2751.3,2751.2,6.4694439]
[1752096036285,1.38575,2751.3,2751.2,8.7932239]
[1752096037085,1.38575,2751.3,2751.2,5.53158]
[1752096037285,0.72674,2751.4,2751.3,0.72675]
[1752096037486,1.38574,2751.4,2751.3,0.72675]
[1752096037792,1.38574,2751.4,2751.3,1.37025]
[1752096039295,1.34914,2751.4,2751.3,1.37025]
[1752096039496,0.72674,2751.4,2751.3,1.37025]
[1752096039694,1.34914,2751.4,2751.3,1.37025]
[1752096040000,0.72674,2751.4,2751.3,1.37025]
[1752096040194,0.72671,2751.6,2751.5,0.72665]
[1752096040394,2.00443864,2751.6,2751.5,1.38935]
[1752096040591,0.797,2751.7,2751.6,0.72667]
[1752096040791,2.6971639,2751.7,2751.6,1.38937]
[1752096041497,3.4238039,2751.7,2751.6,1.38937]
[1752096041794,2.6971639,2751.7,2751.6,1.38937]
[1752096042001,2.6971639,2751.7,2751.6,3.51820464]
[1752096042201,0.98231997,2751.9,2751.8,0.72662]
[1752096042496,1.60471997,2751.9,2751.8,1.38932]
[1752096042696,1.46447819,2751.9,2751.8,8.51815464]
[1752096043402,0.18531997,2751.9,2751.8,9.31285464]
[1752096044101,0.18531997,2751.9,2751.8,4.31285464]
[1752096044402,1.46437924,2751.9,2751.8,4.31285464]
[1752096045498,0.18531997,2751.9,2751.8,4.31285464]
[1752096045695,0.18531997,2751.9,2751.8,4.82970128]
[1752096045894,0.18531997,2751.9,2751.8,3.65646664]
[1752096046096,0.18531997,2751.9,2751.8,4.82970128]
[1752096046296,0.72648,2752.4,2752.3,0.72649]
[1752096046494,2.62528103,2752.4,2752.3,2.86163664]
[1752096046699,1.89874144,2752.4,2752.3,2.86163664]
[1752096046896,1.89874144,2752.4,2752.3,2.34479]
[1752096047101,4.30593091,2753.4,2752.7,0.72638]
[1752096047295,5.38241364,2753.7,2753.0,1.17323464]
[1752096047296,4.30593091,2753.6,2753.0,1.17323464]
[1752096047502,0.6224,2753.1,2753.0,0.7263]
[1752096047703,0.6224,2753.1,2753.0,2.0108]
[1752096048004,5.83923091,2753.8,2753.5,0.72616]
[1752096048198,0.6224,2753.6,2753.5,0.72617]
[1752096048798,2.32047,2753.6,2753.0,3.2078]
[1752096049005,1.5943,2753.6,2753.0,4.0088]
[1752096049211,0.72622,2753.3,2753.0,0.801]
[1752096049403,1.5943,2753.6,2753.0,1.52728]
[1752096049404,0.72625,2753.2,2753.0,1.52728]
[1752096049906,0.72624,2753.3,2753.1,0.72627]
[1752096050403,0.72625,2753.2,2753.0,1.52728]
[1752096050605,0.6224,2753.1,2753.0,1.52729]
[1752096050803,4.30593091,2754.1,2752.9,3.2078]
[1752096051103,0.72632,2753.0,2752.7,1.54986]
[1752096051298,1.53143,2752.9,2752.7,0.8235]
[1752096051499,3.91520694,2752.9,2752.8,0.34063515]
[1752096051705,3.91520694,2752.9,2752.8,0.84141764]
[1752096051905,8.91520694,2752.9,2752.8,0.84141764]
[1752096052105,0.72648,2752.4,2752.2,0.7265]
[1752096052306,0.72648,2752.4,2752.3,0.8417332]
[1752096052504,1.34888,2752.4,2752.3,0.50100802]
[1752096052704,1.34888,2752.4,2752.3,1.02313092]
[1752096052905,2.32078,2752.4,2752.3,1.02313092]
[1752096053706,2.32078,2752.4,2752.3,3.18707771]
[1752096054810,2.32078,2752.4,2752.3,4.28477482]
[1752096055014,7.32078,2752.4,2752.3,1.02313092]
[1752096055213,7.32078,2752.4,2752.3,4.28477482]
[1752096055713,7.32078,2752.4,2752.3,1.02313092]
[1752096056404,7.32078,2752.4,2752.3,2.14147235]
[1752096056610,7.32078,2752.4,2752.3,2.14128384]
[1752096056812,7.32078,2752.4,2752.3,0.5221229]
[1752096057012,0.72648,2752.3,2752.2,1.61916094]
[1752096057207,5.39978,2752.3,2752.2,1.01614438]
[1752096057407,11.37168,2752.3,2752.2,1.01614438]
[1752096059512,6.37168,2752.3,2752.2,1.01614438]
[1752096060015,0.72664,2751.7,2751.6,0.72666]
[1752096060216,2.32094,2751.7,2751.6,0.72666]
[1752096062619,2.32095,2751.7,2751.6,0.72667]
[1752096062814,0.72663,2751.8,2751.7,0.72663]
[1752096063112,1.34903,2751.8,2751.7,0.72663]
[1752096063617,2.32093,2751.8,2751.7,0.72663]
[1752096064519,0.72667,2751.7,2751.6,0.72666]
[1752096066413,2.32097,2751.7,2751.6,0.72666]
[1752096068322,0.72667,2751.6,2751.5,2.34584094]
[1752096068621,2.31897,2751.6,2751.5,2.34584094]
[1752096069715,0.6224,2751.6,2751.5,2.34584094]
[1752096069911,0.6224,2751.6,2751.5,0.72668]
[1752096070113,0.8055,2751.8,2751.7,0.72664]
[1752096070421,0.6546,2751.8,2751.7,0.72664]
[1752096070621,1.38122,2751.8,2751.7,0.72664]
[1752096070925,0.6546,2751.8,2751.7,3.14774475]
[1752096071220,0.6546,2751.8,2751.7,7.97572791]
[1752096071420,2.47876,2752.1,2752.0,0.72656]
[1752096071612,0.72652,2752.3,2752.2,0.72647]
[1752096071814,0.72652,2752.3,2752.2,1.89807475]
[1752096072018,0.72647,2752.4,2752.3,0.72646]
[1752096072220,4.58884,2752.5,2752.4,0.72646]
[1752096072416,3.8624,2752.5,2752.4,1.89806475]
[1752096073214,3.2078,2752.5,2752.4,1.89806475]
[1752096073417,3.8624,2752.5,2752.4,3.51824791]
[1752096073816,4.58883,2752.5,2752.4,1.62018316]
[1752096074217,3.93423,2752.5,2752.4,1.62018316]
[1752096074520,3.2078,2752.5,2752.4,3.57874316]
[1752096076219,3.8624,2752.5,2752.4,2.34664316]
[1752096076412,3.8624,2752.5,2752.4,3.63424316]
[1752096076622,4.58883,2752.5,2752.4,2.01406]
[1752096076922,4.58883,2752.5,2752.4,0.72646]
[1752096077221,4.58883,2752.5,2752.4,2.01406]
[1752096077422,5.55873,2752.5,2752.4,2.01406]
[1752096077613,0.72646,2752.4,2752.3,1.62018316]
[1752096078020,1.52426,2752.4,2752.3,1.62018316]
[1752096078317,1.52426,2752.4,2752.2,1.62018316]
[1752096078318,0.72649,2752.3,2752.2,1.62018316]
[1752096078725,0.72651,2752.2,2752.1,1.62018316]
[1752096079025,0.72654,2752.1,2752.0,1.62018316]
[1752096079419,0.72654,2752.1,2752.0,2.15913507]
[1752096079721,0.72656,2752.0,2751.9,2.15913507]
[1752096079922,0.72656,2752.0,2751.9,3.37389377]
[1752096080122,0.72656,2752.0,2751.9,2.64730377]
[1752096080321,0.72656,2752.0,2751.9,3.37389377]
[1752096080522,0.72656,2752.0,2751.9,2.64730377]
[1752096080823,0.72656,2752.0,2751.9,0.4881687]
[1752096081217,2.35106,2752.0,2751.9,0.4881687]
[1752096081419,4.73561965,2752.0,2751.9,0.4881687]
[1752096081823,2.35106,2752.0,2751.9,0.4881687]
[1752096084023,0.72662,2751.8,2751.7,1.52134]
[1752096084227,2.35112,2751.8,2751.7,0.7947]
[1752096085127,0.72664,2751.7,2751.6,1.62284658]
[1752096085429,0.7267,2751.5,2751.4,2.34956658]
[1752096085626,0.9699,2751.7,2751.5,0.7267]
[1752096085829,1.38128,2751.6,2751.5,1.299]
[1752096086022,1.38128,2751.6,2751.5,2.92184658]
[1752096086219,0.6546,2751.6,2751.5,3.64854658]
[1752096086437,0.9699,2752.0,2751.5,3.68355965]
[1752096086732,2.35108,2752.0,2751.8,0.7266]
[1752096086925,1.6245,2752.0,2751.9,0.72659]
[1752096087331,2.35106,2752.0,2751.9,0.72659]
[1752096087525,1.6245,2752.0,2751.9,0.72659]
[1752096087726,0.6546,2752.0,2751.9,0.72659]
[1752096088532,1.38116,2752.0,2751.9,0.72659]
[1752096089034,0.6546,2752.0,2751.9,0.72659]
[1752096090930,4.1777,2752.3,2751.8,2.38455965]
[1752096091233,0.00172375,2752.5,2752.4,0.72646]
[1752096091531,0.65632375,2752.5,2752.4,0.72646]
[1752096091732,0.00172375,2752.5,2752.4,0.72646]
[1752096091933,0.65632375,2752.5,2752.4,0.72646]
[1752096092533,0.00172375,2752.5,2752.4,0.72646]
[1752096093725,0.00172375,2752.5,2752.4,3.93426]
[1752096093929,0.00172375,2752.5,2752.4,5.18296]
[1752096097229,5.25855063,2753.3,2752.4,5.18296]
[1752096097230,5.38241364,2753.9,2752.4,5.18296]
[1752096097427,17.30126447,2755.6,2754.6,0.72588]
[1752096097428,1.55485775,2754.7,2754.6,0.72588]
[1752096097628,17.30126447,2755.6,2755.0,0.72577]
[1752096097824,17.45039735,2755.1,2752.9,1.62441078]
[1752096098029,1.8162,2754.3,2753.6,1.62441078]
[1752096098226,1.8162,2753.8,2753.7,3.26175857]
[1752096098431,3.2078,2753.9,2753.8,0.72609]
[1752096098635,5.024,2753.9,2753.8,3.26172857]
[1752096098835,53.507,2754.3,2754.1,0.72601]
[1752096099033,3.2078,2754.2,2754.1,0.72601]
[1752096099338,3.2078,2754.2,2754.1,5.87681935]
[1752096099528,3.2078,2754.2,2754.1,3.7218094]
[1752096099734,3.2078,2754.2,2754.1,5.33838603]
[1752096099932,53.507,2754.3,2754.1,4.06235206]
[1752096100239,56.7148,2754.3,2754.2,3.33634206]
[1752096100638,57.44076,2754.3,2754.2,3.33634206]
[1752096100841,58.44986,2754.3,2754.2,3.33634083]
[1752096102535,63.44986,2754.3,2754.2,3.33634083]
[1752096103331,58.44986,2754.3,2754.2,3.33634083]
[1752096103637,63.44986,2754.3,2754.2,3.33634083]
[1752096103836,63.44986,2754.3,2754.2,3.38809888]
[1752096104040,63.44986,2754.3,2754.2,3.04755745]
[1752096106734,63.44986,2754.3,2753.8,1.61642286]
[1752096106735,0.72606,2753.9,2753.8,1.61642286]
[1752096106933,58.28496,2753.9,2753.8,3.47896409]
[1752096107242,58.28496,2753.9,2753.8,3.1383996]
[1752096107836,63.28496,2753.9,2753.8,3.1383996]
[1752096108241,63.28496,2753.9,2753.8,2.57079212]
[1752096108242,115.60596,2753.9,2753.8,2.57079212]
[1752096109736,115.60596,2753.9,2753.8,2.00318464]
[1752096110040,0.72622,2753.3,2753.2,0.72623]
[1752096110244,57.78882,2753.3,2753.2,0.72623]
[1752096110435,57.78882,2753.3,2753.1,2.15500995]
[1752096110436,0.72625,2753.2,2753.1,2.15500995]
[1752096110635,2.16455,2753.2,2753.1,2.49563449]
[1752096110837,0.72627,2753.1,2753.0,2.15500995]
[1752096111036,0.72627,2753.1,2753.0,0.7263]
[1752096111339,2.38517,2753.1,2753.0,2.15500995]
[1752096112445,0.72635,2752.8,2752.7,2.15500995]
[1752096112643,57.70495,2752.8,2752.7,0.72637]
[1752096113037,57.70495,2752.8,2752.5,2.15500995]
[1752096113244,0.72638,2752.7,2752.6,1.06708987]
[1752096113431,1.37618,2752.7,2752.6,3.88069982]
[1752096113636,1.37618,2752.7,2752.6,2.88139995]
[1752096113942,2.38528,2752.7,2752.6,2.15500995]
[1752096114141,3.20488,2752.7,2752.6,2.49571131]
[1752096114342,3.20488,2752.7,2752.6,2.15500995]
[1752096114736,0.72643,2752.5,2752.4,2.88145995]
[1752096114932,57.65303,2752.5,2752.4,3.54005995]
[1752096115139,0.72649,2752.4,2752.2,2.15500995]
[1752096115339,0.72649,2752.4,2752.3,1.06720331]
[1752096115541,0.72649,2752.4,2752.3,0.72647]
[1752096115739,0.72649,2752.3,2752.2,2.15500995]
[1752096116037,54.39929,2752.3,2752.2,2.15500995]
[1752096116241,54.39929,2752.3,2752.2,2.81360995]
[1752096116441,54.39929,2752.3,2752.2,3.88087425]
[1752096116644,54.39929,2752.3,2752.2,3.15436425]
[1752096116844,55.40839,2752.3,2752.2,3.15436425]
[1752096117045,55.40839,2752.3,2752.2,2.81360995]
[1752096117241,55.40839,2752.3,2752.2,2.49576565]
[1752096117643,55.40839,2752.3,2752.2,3.22227565]
[1752096117841,55.40839,2752.3,2752.2,2.49576565]
[1752096118042,55.40839,2752.3,2752.2,0.3407557]
[1752096118244,55.40839,2752.3,2752.2,1.0672657]
[1752096118842,55.40839,2752.3,2752.2,1.60116521]
[1752096119549,55.40839,2752.3,2752.2,2.08721563]
[1752096119847,55.40839,2752.3,2752.2,1.36070563]
[1752096120048,55.40839,2752.3,2752.2,1.60116521]
[1752096120349,55.40839,2752.3,2752.2,0.87465521]
[1752096120744,55.40839,2752.3,2752.2,3.02131335]
[1752096120945,55.40839,2752.3,2752.2,2.68059808]
[1752096121249,55.40839,2752.3,2752.2,0.53389951]
[1752096121953,55.40839,2752.3,2752.2,2.53938449]
[1752096122648,55.40839,2752.3,2752.2,0.48763169]
[1752096122846,53.4838,2752.3,2752.2,1.87274169]
[1752096123046,54.21028,2752.3,2752.2,0.48763169]
[1752096123552,54.21028,2752.3,2752.2,1.87274169]
[1752096124050,54.21028,2752.3,2752.2,1.14623169]
[1752096125047,55.21938,2752.3,2752.2,1.14623169]
[1752096126942,54.21028,2752.3,2752.2,1.14623169]
[1752096127848,55.21918,2752.3,2752.2,1.14623169]
[1752096128349,55.21918,2752.3,2752.2,0.48763169]
[1752096128539,54.56938,2752.3,2752.2,0.48763169]
[1752096129744,54.56938,2752.3,2752.2,1.10143169]
[1752096131151,54.56938,2752.3,2752.2,1.82794169]
[1752096131351,54.56938,2752.3,2752.2,1.10143169]
[1752096131941,53.56048,2752.3,2752.2,0.48763169]
[1752096132549,53.56048,2752.3,2752.2,1.10143169]
[1752096133848,54.56938,2752.3,2752.2,1.10143169]
[1752096134248,54.56938,2752.3,2752.2,0.48763169]
[1752096134448,54.56938,2752.3,2752.2,1.01927862]
[1752096134649,54.56938,2752.3,2752.2,2.50291184]
[1752096135051,54.56938,2752.3,2752.2,2.50292992]
[1752096137455,61.95393965,2752.3,2752.2,2.50292992]
[1752096137852,61.95393965,2752.3,2752.2,2.50381271]
[1752096138253,61.95393965,2752.3,2752.2,1.97126491]
[1752096138458,61.95393965,2752.3,2752.2,2.50393179]
[1752096139462,61.95393965,2752.3,2752.2,0.53266688]
[1752096140254,61.95393965,2752.3,2752.2,2.49248697]
[1752096143762,61.95393965,2752.3,2752.2,2.49062688]
[1752096144364,26.86448,2752.3,2752.2,3.10442688]
[1752096144670,27.50478,2752.3,2752.2,3.44522208]
[1752096145064,26.87348,2752.3,2752.2,5.59192065]
[1752096145561,26.86148,2752.3,2752.2,6.92882065]
[1752096146067,26.86148,2752.3,2752.2,7.65533065]
[1752096146367,26.86148,2752.3,2752.2,6.92882065]
[1752096146767,26.86148,2752.3,2752.2,4.7819489]
[1752096147270,0.72648,2752.3,2752.2,4.7819489]
[1752096147567,26.83748,2752.3,2752.2,4.7819489]
[1752096148762,27.46878,2752.3,2752.2,4.7819489]
[1752096149166,27.46878,2752.3,2752.2,4.78250967]
[1752096149668,27.46878,2752.3,2752.2,5.50901967]
[1752096150366,27.46878,2752.3,2752.2,5.43983001]
[1752096150765,1.35778,2752.3,2752.2,5.43983001]
[1752096150969,27.42378,2752.3,2752.2,5.43983001]
[1752096151268,27.42378,2752.3,2752.2,4.71332001]
[1752096152070,4.56558,2752.3,2752.2,4.71332001]
[1752096152370,30.61658,2752.3,2752.2,5.43983001]
[1752096153170,30.61658,2752.3,2752.2,5.09905768]
[1752096153962,30.61658,2752.3,2752.2,4.56784043]
[1752096154169,30.61658,2752.3,2752.2,5.09164664]
[1752096154565,30.61658,2752.3,2752.2,5.09163867]
[1752096154859,4.56558,2752.3,2752.2,5.09163867]
[1752096155070,30.58358,2752.3,2752.2,5.09163867]
[1752096155772,30.58358,2752.3,2752.2,5.0919833]
[1752096156166,3.8391,2752.3,2752.2,5.0919833]
[1752096156367,3.8391,2752.3,2752.2,8.32449823]
[1752096158776,3.8391,2752.3,2752.2,8.32513789]
[1752096159070,3.8391,2752.3,2752.2,5.09262296]
[1752096159371,29.8131,2752.3,2752.2,5.09262296]
[1752096159572,3.8391,2752.3,2752.2,5.09262296]
[1752096159766,3.2078,2752.8,2752.2,9.26603789]
[1752096159967,3.2078,2752.8,2752.7,0.72638]
[1752096160174,29.8327,2752.8,2752.7,5.29696109]
[1752096160470,29.1638,2752.8,2752.7,5.90716109]
[1752096160771,29.1638,2752.8,2752.7,3.75199296]
[1752096162266,29.1638,2752.8,2752.7,5.90469554]
[1752096162971,29.1458,2752.8,2752.7,5.90469554]
[1752096163168,29.1458,2752.8,2752.7,3.75199296]
[1752096163670,3.2078,2752.8,2752.7,3.75199296]
[1752096163870,29.1388,2752.8,2752.7,3.75199296]
[1752096164066,2.39551,2752.8,2752.7,3.75199296]
[1752096164271,25.922,2753.2,2752.8,1.81589]
[1752096164472,3.2078,2753.5,2753.1,0.6102]
[1752096164674,25.924,2753.4,2753.3,0.72622]
[1752096164972,25.924,2753.4,2753.3,5.04873296]
[1752096165169,0.7764,2753.7,2753.6,0.72614]
[1752096165367,3.2078,2753.9,2753.8,0.72609]
[1752096165563,29.7957,2753.9,2753.8,3.75170296]
[1752096166164,29.7957,2753.9,2753.8,5.04860296]
[1752096166377,3.8727,2753.9,2753.8,5.04860296]
[1752096166574,29.7867,2753.9,2753.8,5.04860296]
[1752096167276,29.7727,2753.9,2753.8,5.04860296]
[1752096167471,29.7727,2753.9,2753.8,5.0489053]
[1752096167671,29.7727,2753.9,2753.8,3.7520053]
[1752096167867,29.7727,2753.9,2753.8,2.4157153]
[1752096167868,29.83386,2753.9,2753.8,2.4157153]
[1752096168073,0.72617,2753.5,2753.4,2.33608101]
[1752096168273,0.72617,2753.5,2753.4,4.74042529]
[1752096168274,29.1008,2753.5,2753.4,4.74042529]
[1752096168469,29.1008,2753.5,2753.4,3.74073428]
[1752096169773,29.1008,2753.5,2753.4,3.13053428]
[1752096169969,3.2078,2753.5,2753.4,3.74073428]
[1752096170175,29.1268,2753.5,2753.4,3.74073428]
[1752096170476,29.1268,2753.5,2753.4,3.74053203]
[1752096170677,29.1268,2753.5,2753.4,1.8613468]
[1752096171179,1.6321,2753.9,2753.4,1.8613468]
[1752096171180,1.6321,2753.9,2753.5,0.72617]
[1752096171374,2.35817,2753.9,2753.8,0.72609]
[1752096171580,27.31297,2753.9,2753.8,1.86341993]
[1752096171880,3.9842,2754.1,2754.0,0.72603]
[1752096172181,31.29312,2754.1,2754.0,1.33623]
[1752096172374,5.37512,2754.1,2754.0,0.72603]
[1752096172569,31.28712,2754.1,2754.0,0.72603]
[1752096172778,31.28712,2754.1,2754.0,1.33623]
[1752096173171,32.25432,2754.1,2754.0,1.33623]
[1752096173480,32.25432,2754.1,2754.0,0.6102]
[1752096173674,0.72603,2754.0,2753.9,0.72604]
[1752096173874,2.35813,2754.0,2753.9,0.72604]
[1752096174074,2.35813,2754.0,2753.9,1.8630899]
[1752096174383,1.6321,2754.0,2753.9,1.8630899]
[1752096174878,0.6649,2754.0,2753.9,1.8630899]
[1752096175079,26.5479,2754.0,2753.9,1.8630899]
[1752096175470,27.27393,2754.0,2753.9,1.2528899]
[1752096175674,26.5479,2754.0,2753.9,1.8630899]
[1752096176179,27.27393,2754.0,2753.9,1.8630899]
[1752096176374,26.5479,2754.0,2753.9,1.8630899]
[1752096176678,27.27393,2754.0,2753.9,1.8630899]
[1752096177380,26.5479,2754.0,2753.9,1.8630899]
[1752096177877,26.5189,2754.0,2753.9,1.8630899]
[1752096179671,3.9842,2754.1,2753.9,1.8630899]
[1752096179979,3.9842,2754.1,2754.0,0.72603]
[1752096180177,30.4761,2754.1,2754.0,0.72603]
[1752096180375,30.4761,2754.1,2754.0,1.33623]
[1752096180574,30.4761,2754.1,2754.0,2.59550717]
[1752096180774,31.20211,2754.1,2754.0,3.74406644]
[1752096181279,30.4761,2754.1,2754.0,3.74426742]
[1752096182877,0.18531997,2755.1,2754.0,10.12914743]
[1752096183182,1.17001001,2754.6,2754.1,2.40864711]
[1752096183381,26.98901001,2754.6,2754.2,2.40864711]
[1752096183575,0.72595,2754.4,2754.3,0.72595]
[1752096183775,27.51115,2754.4,2754.3,1.26496795]
[1752096183980,27.4501,2754.4,2754.3,1.26496795]
[1752096184177,27.4501,2754.4,2754.3,1.87516795]
[1752096184773,28.17603,2754.4,2754.3,1.87516795]
[1752096185980,2.35803,2754.4,2754.3,1.87516795]
[1752096186179,27.4251,2754.4,2754.3,1.87516795]
[1752096186584,27.4251,2754.4,2754.3,4.74749012]
[1752096186884,27.4251,2754.4,2754.3,3.13958223]
[1752096187079,28.15103,2754.4,2754.3,3.74978223]
[1752096187280,27.4251,2754.4,2754.3,3.74978223]
[1752096187482,28.15103,2754.4,2754.3,3.74978223]
[1752096187682,28.15103,2754.4,2754.3,3.02383223]
[1752096187981,27.4251,2754.4,2754.3,3.74979223]
[1752096188482,1.6321,2754.4,2754.3,3.74979223]
[1752096188682,27.4001,2754.4,2754.3,3.74979223]
[1752096188879,26.4289,2754.4,2754.3,3.74979223]
[1752096189779,26.4289,2754.4,2754.3,3.74985019]
[1752096190185,27.4208,2754.4,2754.3,5.35569648]
[1752096191484,0.6649,2754.4,2754.3,6.52570649]
[1752096191689,26.4019,2754.4,2754.3,8.1276602]
[1752096191883,26.4019,2754.4,2754.3,9.10703308]
[1752096193288,28.11973,2754.4,2754.3,9.10703308]
[1752096193488,28.11813,2754.4,2754.3,3.13965019]
[1752096193786,3.68763,2754.4,2754.3,3.13965019]
[1752096193991,29.40963,2754.4,2754.3,2.41369019]
[1752096194196,29.40963,2754.4,2754.3,5.64120205]
[1752096194690,29.40963,2754.4,2754.3,6.36716205]
[1752096195091,29.40963,2754.4,2754.3,4.74761462]
[1752096195392,29.40963,2754.4,2754.3,5.28775382]
[1752096195792,29.40963,2754.4,2754.3,5.27633458]
[1752096196194,29.40963,2754.4,2754.3,5.2448494]
[1752096196488,28.10313,2754.4,2754.3,5.2448494]
[1752096196891,27.3772,2754.4,2754.3,5.2448494]
[1752096197092,27.3772,2754.4,2754.3,6.30362594]
[1752096197293,27.3772,2754.4,2754.3,6.94502594]
[1752096198596,0.7884,2754.5,2754.4,0.72593]
[1752096198790,3.2078,2755.0,2754.6,1.81468]
[1752096199093,26.4655,2754.9,2754.8,0.72582]
[1752096199287,26.4655,2754.9,2754.8,3.09588908]
[1752096199488,28.1207,2754.9,2754.8,3.73728908]
[1752096200392,28.1207,2754.9,2754.8,5.34914095]
[1752096201701,28.8465,2754.9,2754.8,5.34914095]
[1752096202403,28.8465,2754.9,2754.8,5.88642491]
[1752096203093,28.8465,2754.9,2754.8,3.73728908]
[1752096203504,28.8065,2754.9,2754.8,3.73728908]
[1752096203902,28.8065,2754.9,2754.8,3.01146908]
[1752096204098,33.8065,2754.9,2754.8,3.98406871]
[1752096204299,34.97651001,2754.9,2754.8,2.37006908]
[1752096204500,36.25831001,2754.9,2754.8,2.37006908]
[1752096204700,36.25831001,2754.9,2754.5,2.14913583]
[1752096204701,0.72588,2754.6,2754.5,2.14913583]
[1752096204905,28.51279001,2754.6,2754.5,3.18579155]
[1752096205103,28.51279001,2754.6,2754.5,2.31542181]
[1752096205308,27.34278,2754.6,2754.5,2.31542181]
[1752096205810,28.62458,2754.6,2754.5,2.31542181]
[1752096208507,29.28788,2754.6,2754.5,2.31542181]
[1752096209405,3.66288,2754.6,2754.5,2.31542181]
[1752096209605,29.24988,2754.6,2754.5,2.31542181]
[1752096210801,29.24988,2754.6,2754.5,1.78542793]
[1752096216513,30.41989001,2754.6,2754.5,1.78542793]
[1752096219414,30.41989001,2754.6,2754.1,3.22751186]
[1752096219415,0.72601,2754.1,2754.0,3.22751186]
[1752096219612,26.88521,2754.1,2754.0,2.32561341]
[1752096220112,27.73331,2754.1,2754.0,2.32561341]
[1752096220518,27.73331,2754.1,2754.0,3.05164341]
[1752096220716,27.73331,2754.1,2754.0,2.32561341]
[1752096221118,28.69491,2754.1,2754.0,2.32561341]
[1752096221317,28.69491,2754.1,2754.0,3.05164341]
[1752096221912,28.69491,2754.1,2754.0,2.32561341]
[1752096223318,28.69491,2754.1,2754.0,3.05164341]
[1752096224514,27.73331,2754.1,2754.0,3.05164341]
[1752096229115,27.07811,2754.1,2754.0,3.05164341]
[1752096229621,26.88521,2754.1,2754.0,3.05164341]
[1752096230019,26.1592,2754.1,2754.0,1.34313]
[1752096230216,0.72596,2754.4,2754.0,3.46619572]
[1752096230418,25.447,2754.3,2754.2,0.72597]
[1752096230717,26.82818,2754.3,2754.2,3.02215571]
[1752096230910,0.6552,2754.3,2754.2,3.02215571]
[1752096231110,26.1022,2754.3,2754.2,5.47116572]
[1752096232015,26.1022,2754.3,2754.2,4.30115571]
[1752096237221,26.1022,2754.3,2754.2,3.68405571]
[1752096237519,27.78976,2754.3,2754.2,3.02215571]
[1752096237724,27.0638,2754.3,2754.2,5.17567477]
[1752096238125,26.1022,2754.3,2754.2,5.17567477]
[1752096238721,0.6552,2754.3,2754.2,5.17567477]
[1752096238924,26.1012,2754.3,2754.2,5.17567477]
[1752096241026,27.0628,2754.3,2754.2,5.17567477]
[1752096241829,28.95877001,2754.3,2754.2,3.83260477]
[1752096242228,27.78876,2754.3,2754.2,3.83260477]
[1752096242828,27.78876,2754.3,2754.2,1.67908571]
[1752096244432,2.34276,2754.3,2754.2,1.67908571]
[1752096244928,27.78676,2754.3,2754.2,1.67908571]
[1752096245425,29.02316,2754.3,2754.2,1.67908571]
[1752096245630,3.57916,2754.3,2754.2,1.67908571]
[1752096245830,29.02316,2754.3,2754.2,1.67908571]
[1752096248625,29.02316,2754.3,2754.2,2.29618571]
[1752096248822,27.78476,2754.3,2754.2,1.67908571]
[1752096249026,27.78476,2754.3,2754.2,2.29618571]
[1752096249331,27.78476,2754.3,2754.2,1.67908571]
[1752096249630,27.78476,2754.3,2754.2,2.32528571]
[1752096250432,2.34276,2754.3,2754.2,2.32528571]
[1752096250730,27.78376,2754.3,2754.2,2.32528571]
[1752096251534,2.34276,2754.3,2754.2,2.32528571]
[1752096251736,27.78376,2754.3,2754.2,2.32528571]
[1752096251932,27.78376,2754.3,2754.2,4.47880477]
[1752096252132,27.78376,2754.3,2754.2,2.32528571]
[1752096254438,27.78376,2754.3,2754.2,0.6462]
[1752096254937,1.38116,2754.3,2754.2,1.37218]
[1752096255238,26.82116,2754.3,2754.2,0.6462]
[1752096255835,28.91117001,2754.3,2754.2,0.6462]
[1752096256239,27.74116,2754.3,2754.2,0.6462]
[1752096257136,0.72601,2754.1,2753.9,3.2078]
[1752096257344,0.72601,2754.1,2753.9,0.6462]